{"text_format":"1","workbook":"xlsx","n_sheets":1,"sheets":["0904.3"],"not_rendered":{"charts":0,"images":0,"macros":0,"external_links":0,"defined_names":0,"comments":0,"pivot_tables":0},"unopened":[],"bounds":{"document_bytes":16777216,"sheet_cells":100000,"rows_first":2000,"rows_last":500,"rows_between":2000,"halvings":0,"cell_chars":16384,"cell_head_chars":4096},"cells_cut":0,"cells_raw":0,"read":"whole","date_system":"1900"}

{"sheet":"0904.3","index":0,"n_rows":77,"n_cols":23,"rows_kept":77,"cut":false,"hidden":false,"merged":[[7,0,10,0],[7,1,10,1],[7,3,8,4],[8,5,8,6],[9,3,10,3],[9,4,10,4],[9,7,9,8],[9,9,9,10],[9,11,9,12],[9,13,9,14],[9,5,10,5],[9,6,10,6],[9,19,9,20],[8,2,10,2],[0,0,0,5],[0,18,0,22],[1,0,2,5],[1,6,1,17],[1,18,2,22],[2,6,2,17],[3,0,3,5],[3,6,3,17],[4,0,4,5],[5,0,5,5],[9,21,9,22],[8,7,8,22],[7,5,7,22],[9,15,9,16],[9,17,9,18]]}
["Biểu số: 1004.3-6T,N/BTNMT",null,null,null,null,null,null,null,null,null,null,null,null,null,null,null,null,null,"Đơn vị báo cáo: Thanh tra Bộ"]
["Ban hành kèm theo thông tư số 22/2023/TT-BTNMT ngày 15 tháng 12 năm 2023 của  Bộ trưởng Bộ TN&MT",null,null,null,null,null,"TỔNG HỢP XỬ LÝ VI PHẠM BẰNG HÌNH THỨC",null,null,null,null,null,null,null,null,null,null,null,"Đơn vị nhận báo cáo: Vụ Kế hoạch - Tài chính"]
[null,null,null,null,null,null,"THU HỒI TIỀN QUA THANH TRA, KIỂM TRA"]
["Ngày nhận báo cáo:",null,null,null,null,null,"Năm 2023"]
["- Báo cáo 6 tháng: Ngày 20/6 năm báo cáo"]
["- Báo cáo năm: Ngày 15/3 năm sau"]
[]
["STT","Tỉnh/thành phố",null,"Tổng số",null,"Trong đó:"]
[null,null,"Mã số",null,null,"Thanh tra, kiểm tra hành chính",null,"Thanh tra, kiểm tra chuyên ngành"]
[null,null,null,"Số tổ chức, cá nhân","Số tiền (triệu đồng)","Số tổ chức, cá nhân","Số tiền (triệu đồng)","Đất đai",null,"Tài nguyên nước",null,"Tài nguyên khoáng sản, địa chất",null,"Môi trường",null,"Khí tượng thủy văn và Biến đổi khí hậu",null,"Đo đạc và Bản đồ",null,"Biển và Hải đảo",null,"Khác"]
[null,null,null,null,null,null,null,"Số tổ chức, cá nhân","Số tiền (triệu đồng)","Số tổ chức, cá nhân","Số tiền (triệu đồng)","Số tổ chức, cá nhân","Số tiền (triệu đồng)","Số tổ chức, cá nhân","Số tiền (triệu đồng)","Số tổ chức, cá nhân","Số tiền (triệu đồng)","Số tổ chức, cá nhân","Số tiền (triệu đồng)","Số tổ chức, cá nhân","Số tiền (triệu đồng)","Số tổ chức, cá nhân","Số tiền (triệu đồng)"]
["A","B","C",1,2,3,4,5,6,7,8,9,10,11,12,13,14,15,16,17,18,19,20]
[1,"An Giang",null,{"$f":"SUM(F13,H13,J13,L13,N13,P13,R13,T13,V13)","v":0},{"$f":"SUM(K22)","v":0}]
[2,"Bà Rịa - Vũng Tàu",null,{"$f":"SUM(F14,H14,J14,L14,N14,P14,R14,T14,V14)","v":8},1916,null,null,null,null,null,null,null,null,null,null,null,null,null,null,null,null,8,1916]
[3,"Bạc Liêu ",null,2,7,null,null,2,7]
[4,"Bắc Kạn",null,0,0]
[5,"Bắc Giang",null,0,0]
[6,"Bắc Ninh",null,0,0]
[7,"Bến Tre",null,0,0]
[8,"Bình Dương",null,0,0]
[9,"Bình Định",null,0,0]
[10,"Bình Phước",null,0,0]
[11,"Bình Thuận",null,0,0]
[12,"Cà Mau",null,0,0]
[13,"Cao Bằng",null,0,0]
[14,"Cần Thơ",null,0,454,null,null,null,454]
[15,"Đà Nẵng",null,0,0]
[16,"Đắc Lắk",null,0,0]
[17,"Đắc Nông",null,0,0]
[18,"Đồng Nai",null,0,0]
[19,"Đồng Tháp",null,0,0]
[20,"Điện Biên",null,2,411,null,null,2,411]
[21,"Gia Lai",null,0,0]
[22,"Hà Giang",null,0,0]
[23,"Hà Nam ",null,0,0]
[24,"Hà Nội",null,0,0]
[25,"Hà Tĩnh",null,0,0]
[26,"Hải Dương",null,0,0]
[27,"Hải Phòng",null,0,1796,null,null,null,1796]
[28,"Hậu Giang",null,0,0]
[29,"TP. Hồ Chí Minh",null,0,0]
[30,"Hưng Yên",null,0,0]
[31,"Hòa Bình",null,0,0]
[32,"Khánh Hoà",null,0,0]
[33,"Kiên Giang",null,0,0]
[34,"Kon Tum ",null,0,0]
[35,"Lai Châu",null,0,0]
[36,"Lâm Đồng",null,0,0]
[37,"Lào Cai",null,0,0]
[38,"Lạng Sơn",null,0,0]
[39,"Long An",null,0,0]
[40,"Nam Định",null,8,0,null,null,8,"556.1"]
[41,"Nghệ An",null,0,32,null,null,null,null,null,null,null,null,null,null,null,null,null,null,null,null,null,32]
[42,"Ninh Bình",null,0,0]
[43,"Ninh Thuận",null,0,0]
[44,"Phú Thọ",null,0,0]
[45,"Phú Yên",null,0,0]
[46,"Quảng Bình",null,0,0]
[47,"Quảng Nam",null,7,2559,null,2285,4,12,null,null,null,null,null,null,null,null,null,null,null,null,3,262]
[48,"Quảng Ngãi",null,3,1019,null,null,1,136,1,854,null,null,null,null,null,null,null,null,null,null,1,29]
[49,"Quảng Ninh",null,0,0]
[50,"Quảng Trị",null,0,0]
[51,"Sơn La",null,0,0]
[52,"Sóc Trăng",null,0,0]
[53,"Tây Ninh",null,0,0]
[54,"Thái Bình",null,0,0]
[55,"Thái Nguyên",null,3,823,null,null,3,823]
[56,"Thanh Hóa",null,3,70,null,null,1,2,null,null,1,30,1,38]
[57,"Thừa Thiên Huế",null,5,0,null,null,5,"697.5"]
[58,"Tiền Giang",null,2,243,null,null,2,243]
[59,"Trà Vinh",null,0,0]
[60,"Tuyên Quang",null,0,0]
[61,"Vĩnh Long",null,0,0]
[62,"Vĩnh Phúc",null,0,0]
[63,"Yên Bái",null,0,0]
[64,"Bộ TNMT",null,0,0]
[null,"Tổng số",null,{"$f":"SUM(D13:D76)","v":43},{"$f":"SUM(E13:E76)","v":9330},null,{"$f":"SUM(G13:G76)","v":2285},28,3884,1,854,1,30,1,38,null,null,null,null,null,null,{"$f":"SUM(V13:V76)","v":12},{"$f":"SUM(W13:W76)","v":2239}]